bitfinex-derivatives/quotes_SOLF0:USTF0_20250705
["timestamp","ask_amount","ask_price","bid_price","bid_amount"]
[1751709659964,5.75312293,147.85,147.84,2.34092166]
[1751709660666,12.51452293,147.85,147.84,2.34092166]
[1751709660866,5.75312293,147.85,147.84,195.28]
[1751709661862,10.40255679,147.85,147.84,195.28]
[1751709662459,19.73678794,147.85,147.78,48.70092166]
[1751709662667,2.34092166,147.8,147.76,2.34092166]
[1751709662867,17.16705679,147.79,147.77,195.26]
[1751709663057,5.75312293,147.78,147.77,195.26]
[1751709664569,12.51772293,147.78,147.77,197.60092166]
[1751709665769,12.51772293,147.78,147.77,195.26]
[1751709665969,5.75312293,147.78,147.77,195.26]
[1751709666171,2.2398,147.81,147.77,197.60092166]
[1751709666370,5.79706916,147.8,147.79,2.34092166]
[1751709667670,12.56076916,147.8,147.79,2.34092166]
[1751709668274,6.7637,147.8,147.79,2.34092166]
[1751709673975,6.7637,147.8,147.78,2.34092166]
[1751709674179,4.58072166,147.81,147.77,197.60092166]
[1751709674374,8.14088177,147.8,147.7,62.0]
[1751709674571,8.14088177,147.8,147.74,2.34092166]
[1751709674572,2.34092166,147.78,147.74,2.34092166]
[1751709674773,12.56536011,147.77,147.74,2.34092166]
[1751709674980,6.7654,147.77,147.75,2.34092166]
[1751709675577,6.7655,147.76,147.75,2.34092166]
[1751709675779,12.23005734,147.81,147.73,205.72770523]
[1751709676080,10.58911476,147.8,147.73,205.72770523]
[1751709676273,6.7652,147.77,147.74,6.7664]
[1751709677176,6.7643,147.79,147.75,3.66120523]
[1751709677575,6.7643,147.79,147.75,10.42690523]
[1751709683179,6.7643,147.79,147.76,6.7654]
[1751709684276,6.7651,147.77,147.74,3.66120523]
[1751709684579,6.7651,147.77,147.75,195.3]
[1751709685680,6.7648,147.78,147.75,202.0659]
[1751709688089,3.66120523,147.8,147.72,3.66120523]
[1751709688287,3.66120523,147.8,147.72,198.94120523]
[1751709688484,4.6306,147.79,147.72,198.94120523]
[1751709688885,4.6306,147.79,147.72,3.66120523]
[1751709689087,4.6306,147.79,147.72,10.42830523]
[1751709690089,6.7659,147.76,147.72,10.42830523]
[1751709690284,6.7659,147.76,147.73,6.7668]
[1751709703905,6.7659,147.76,147.74,2.34358862]
[1751709704108,4.6306,147.79,147.75,2.34358862]
[1751709704297,10.55506954,147.78,147.76,2.34358862]
[1751709704501,2.2398,147.81,147.77,2.34358862]
[1751709704704,6.7634,147.81,147.8,2.34358862]
[1751709704916,7.0787419,147.81,147.8,2.34358862]
[1751709705104,4.51386272,147.84,147.8,197.60358862]
[1751709705305,6.32905211,147.86,147.83,2.34358862]
[1751709705608,10.30261032,147.85,147.84,2.34358862]
[1751709705809,12.55042737,147.85,147.82,3.65679153]
[1751709706003,5.78902737,147.84,147.82,3.65679153]
[1751709706205,3.65679153,147.86,147.81,46.32]
[1751709706404,5.78960449,147.85,147.81,46.32]
[1751709706715,6.7628,147.82,147.81,46.32]
[1751709707204,12.5527595,147.82,147.81,46.32]
[1751709707404,6.7628,147.82,147.81,46.32]
[1751709707610,12.55321485,147.82,147.81,46.32]
[1751709708213,6.7628,147.82,147.81,46.32]
[1751709721624,6.7624,147.83,147.81,46.32]
[1751709721925,2.3301,147.85,147.81,46.32]
[1751709722118,5.75567642,147.84,147.81,46.32]
[1751709722325,4.4744,147.87,147.82,3.65679153]
[1751709722518,5.75482918,147.86,147.83,195.16]
[1751709722718,12.51652918,147.85,147.83,195.16]
[1751709722919,6.7617,147.85,147.83,195.16]
[1751709730035,6.7617,147.85,147.83,197.50055551]
[1751709733133,6.7617,147.85,147.84,2.34055551]
[1751709733533,12.53466626,147.85,147.84,2.34055551]
[1751709734331,12.53495187,147.85,147.84,2.34055551]
[1751709741037,12.53495187,147.85,147.83,197.50055551]
[1751709741238,6.7617,147.85,147.83,197.50055551]
[1751709744245,5.78331742,147.84,147.83,197.50055551]
[1751709744441,5.78331742,147.84,147.81,46.32]
[1751709744645,2.34055551,147.84,147.81,241.4]
[1751709744845,2.34055551,147.84,147.81,46.32]
[1751709745646,2.34055551,147.85,147.81,48.66055551]
[1751709745848,5.78587686,147.84,147.82,2.34055551]
[1751709746048,6.7623,147.84,147.82,2.34055551]
[1751709746249,5.76736536,147.83,147.82,2.34055551]
[1751709748047,12.52966536,147.83,147.82,2.34055551]
[1751709749049,6.7628,147.82,147.81,48.66055551]
[1751709749449,12.5424206,147.82,147.81,48.66055551]
[1751709749837,6.7628,147.82,147.81,48.66055551]
[1751709752150,6.7628,147.82,147.81,46.32]
[1751709753246,6.7637,147.81,147.77,6.7649]
[1751709753447,2.34055551,147.82,147.78,197.42055551]
[1751709753751,5.91271111,147.84,147.78,195.08]
[1751709754446,6.7636,147.81,147.77,56.70461111]
[1751709754649,6.7636,147.81,147.78,195.06]
[1751709754846,5.91271111,147.84,147.78,195.06]
[1751709755149,6.7639,147.8,147.78,195.06]
[1751709756045,6.7641,147.79,147.78,195.06]
[1751709756243,5.91271111,147.84,147.77,46.28]
[1751709756649,6.7646,147.78,147.77,241.34]
[1751709756954,3.65971111,147.82,147.77,241.34]
[1751709757148,3.65971111,147.82,147.77,46.28]
[1751709757348,3.65971111,147.82,147.77,241.34]
[1751709757544,6.7644,147.79,147.77,241.34]
[1751709757957,6.7639,147.8,147.77,241.34]
[1751709759756,6.7642,147.79,147.77,241.34]
[1751709761758,6.7646,147.78,147.77,241.34]
[1751709763351,6.7643,147.79,147.77,241.34]
[1751709764049,6.7643,147.79,147.77,46.28]
[1751709764257,6.7643,147.79,147.78,195.08]
[1751709764460,12.5095041,147.79,147.78,195.08]
[1751709766260,6.7643,147.79,147.78,195.08]
[1751709770756,8.57053965,147.84,147.78,198.73971111]
[1751709770957,5.72804958,147.83,147.78,198.73971111]
[1751709771260,6.7636,147.81,147.78,198.73971111]
[1751709771853,6.7636,147.81,147.78,205.50421111]
[1751709772054,6.7636,147.81,147.78,195.08]
[1751709772263,6.7636,147.81,147.78,198.73971111]
[1751709773458,6.7638,147.8,147.78,198.73971111]
[1751709774562,6.7638,147.8,147.78,195.08]
[1751709776762,6.7641,147.79,147.78,195.08]
[1751709776961,12.23025076,147.84,147.78,195.08]
[1751709777159,5.73858278,147.83,147.78,195.08]
[1751709777361,6.7639,147.8,147.78,195.08]
[1751709777560,2.253,147.84,147.78,195.08]
[1751709777761,5.73867742,147.83,147.78,195.08]
[1751709777960,6.7635,147.81,147.78,195.08]
[1751709780164,6.7637,147.8,147.78,195.08]
[1751709782065,6.7635,147.81,147.78,195.08]
[1751709782567,6.7637,147.8,147.78,195.08]
[1751709783965,6.7637,147.8,147.79,2.34204201]
[1751709786460,6.7637,147.8,147.79,197.38204201]
[1751709787684,12.52064622,147.8,147.79,197.38204201]
[1751709787975,12.52064622,147.8,147.79,195.04]
[1751709789362,12.52064622,147.8,147.79,197.38204201]
[1751709789869,12.52064622,147.8,147.79,2.34204201]
[1751709790064,12.52064622,147.8,147.79,197.36204201]
[1751709790970,12.52064622,147.8,147.79,195.02]
[1751709798270,5.75694622,147.8,147.77,46.28]
[1751709798475,5.75694622,147.79,147.77,195.0]
[1751709798678,5.75694622,147.78,147.77,195.0]
[1751709799177,12.52174622,147.78,147.77,195.0]
[1751709799676,12.52174622,147.78,147.76,2.34204201]
[1751709799880,6.7648,147.78,147.77,195.0]
[1751709800076,12.52675969,147.78,147.77,195.0]
[1751709801177,5.76195969,147.78,147.68,66.7324]
[1751709801475,5.76195969,147.77,147.72,241.24]
[1751709801774,6.31753965,147.8,147.72,241.24]
[1751709801981,6.7649,147.78,147.74,6.7662]
[1751709802175,5.7487564,147.77,147.75,195.0]
[1751709802379,6.7649,147.78,147.75,195.0]
[1751709802580,6.7644,147.79,147.77,2.34204201]
[1751709802781,13.31208166,147.82,147.78,2.34204201]
[1751709803078,6.7641,147.79,147.78,2.34204201]
[1751709803278,12.51157815,147.79,147.78,2.34204201]
[1751709805082,6.7647,147.78,147.75,248.0057]
[1751709805278,6.7647,147.78,147.77,2.34204201]
[1751709805479,12.51200112,147.78,147.77,2.34204201]
[1751709806879,12.51200112,147.78,147.75,248.0057]
[1751709807087,12.51240112,147.77,147.76,2.34204201]
[1751709807389,5.74730112,147.77,147.76,2.34204201]
[1751709808085,12.51240112,147.77,147.76,2.34204201]
[1751709815191,5.74730112,147.77,147.76,9.10754201]
[1751709815386,8.58333965,147.82,147.76,2.34204201]
[1751709815593,10.47833966,147.81,147.8,2.34204201]
[1751709815893,6.7637,147.8,147.79,197.34204201]
[1751709816091,12.54349001,147.8,147.79,197.34204201]
[1751709819094,17.24271852,147.8,147.79,197.34204201]
[1751709823098,10.47901852,147.8,147.79,197.34204201]
[1751709823297,5.77979001,147.8,147.79,197.34204201]
[1751709826599,6.7633,147.81,147.79,197.34204201]
[1751709826791,6.7633,147.81,147.8,2.34204201]
[1751709826990,12.57311092,147.81,147.8,2.34204201]
[1751709830795,17.31250806,147.81,147.8,2.34204201]
[1751709831098,12.57311092,147.81,147.8,2.34204201]
[1751709842104,5.80981092,147.81,147.8,2.34204201]
[1751709843903,12.57301092,147.81,147.8,2.34204201]
[1751709846101,2.253,147.84,147.8,9.10574201]
[1751709846308,2.253,147.84,147.83,2.34204201]
[1751709846506,13.82963069,147.84,147.83,2.34204201]
[1751709846705,4.75142591,147.84,147.83,2.34204201]
[1751709846907,2.32,147.87,147.83,2.34204201]
[1751709847103,6.7605,147.87,147.86,2.34204201]
[1751709847302,11.51080246,147.87,147.86,2.34204201]
[1751709847710,11.50827305,147.87,147.86,2.34204201]
[1751709847906,6.7605,147.87,147.86,2.34204201]
[1751709849008,4.6353,147.91,147.86,2.34204201]
[1751709849209,4.6353,147.91,147.88,2.34204201]
[1751709849210,4.74448525,147.9,147.88,2.34204201]
[1751709849398,75.3559167,147.92,147.89,2.34204201]
[1751709849603,6.31753965,147.93,147.91,2.34204201]
[1751709849907,6.7577,147.93,147.92,2.34204201]
[1751709850107,11.49713535,147.93,147.92,2.34204201]
[1751709851209,7.07774862,147.93,147.72,20.3]
[1751709851508,2.33909267,147.92,147.88,2.33909267]
[1751709851907,9.97276377,147.94,147.86,3.65522412]
[1751709852108,6.7596,147.89,147.86,3.65522412]
[1751709853411,6.7596,147.89,147.86,10.41612412]
[1751709856708,6.7601,147.88,147.86,3.65522412]
[1751709858005,2.2747,147.91,147.85,3.65522412]
[1751709858212,5.81486219,147.9,147.85,3.65522412]
[1751709858409,2.2747,147.91,147.85,3.65522412]
[1751709858610,5.81486337,147.9,147.85,3.65522412]
[1751709858808,2.2747,147.91,147.85,3.65522412]
[1751709859008,5.81486337,147.9,147.85,3.65522412]
[1751709859201,4.4702,147.91,147.85,3.65522412]
[1751709859401,6.7603,147.88,147.85,3.65522412]
[1751709860311,6.7603,147.88,147.85,10.41662412]
[1751709864412,6.7603,147.88,147.87,3.65522412]
[1751709869013,6.761,147.86,147.85,3.65522412]
[1751709869713,6.761,147.86,147.83,3.65522412]
[1751709871513,6.7614,147.85,147.83,3.65522412]
[1751709872215,6.7614,147.85,147.82,247.7425]
[1751709872216,3.65522412,147.9,147.82,46.2]
[1751709872415,3.65522412,147.88,147.82,240.98]
[1751709872713,13.01237524,147.87,147.82,240.98]
[1751709873014,6.7621,147.84,147.82,46.2]
[1751709873712,6.7623,147.83,147.82,46.2]
[1751709876317,5.98052412,147.86,147.79,3.65522412]
[1751709876519,12.85524095,147.85,147.78,240.94]
[1751709876717,6.7635,147.81,147.78,240.94]
[1751709876909,6.7635,147.81,147.78,247.7046]
[1751709880422,6.7635,147.81,147.79,3.65522412]
[1751709885029,6.7635,147.81,147.8,194.8]
[1751709885722,6.7635,147.81,147.79,3.65522412]
[1751709885928,6.7635,147.81,147.8,194.8]
[1751709895736,6.7635,147.81,147.8,197.1416819]
[1751709898833,6.7635,147.81,147.8,2.3416819]
[1751709901836,6.7638,147.8,147.79,2.3416819]
[1751709902039,6.7638,147.8,147.79,197.1416819]
[1751709903039,6.7634,147.81,147.79,197.1416819]
[1751709903245,6.7634,147.81,147.8,2.3416819]
[1751709903742,6.763,147.82,147.8,2.3416819]
[1751709903945,2.3226,147.85,147.81,2.3416819]
[1751709904143,5.74808126,147.84,147.82,2.3416819]
[1751709904345,2.3226,147.85,147.79,201.564]
[1751709904548,5.74864015,147.84,147.82,2.3416819]
[1751709904745,2.3226,147.85,147.82,2.3416819]
[1751709904941,5.74864015,147.84,147.82,2.3416819]
[1751709905139,2.3226,147.85,147.82,2.3416819]
[1751709905140,5.74864015,147.83,147.82,2.3416819]
[1751709906742,12.51094015,147.83,147.82,2.3416819]
[1751709907544,6.7629,147.82,147.81,2.3416819]
[1751709910448,12.52095494,147.82,147.81,2.3416819]
[1751709911248,5.75805494,147.82,147.81,2.3416819]
[1751709911551,6.7625,147.83,147.81,2.3416819]
[1751709911850,6.7625,147.83,147.82,2.3416819]
[1751709912050,12.53498513,147.83,147.82,2.3416819]
[1751709913445,17.28898026,147.83,147.82,2.3416819]
[1751709913650,6.7628,147.82,147.81,2.3416819]
[1751709913846,12.53528513,147.82,147.81,2.3416819]
[1751709915252,17.2928837,147.82,147.81,2.3416819]
[1751709917950,17.2970415,147.82,147.81,2.3416819]
[1751709920855,17.30960316,147.82,147.81,2.3416819]
[1751709922457,17.31012914,147.82,147.81,2.3416819]
[1751709931561,10.54732914,147.82,147.81,9.1048819]
[1751709931761,6.31753965,147.84,147.81,2.3416819]
[1751709931958,6.31753965,147.87,147.83,2.3416819]
[1751709932260,11.56006119,147.86,147.84,194.72]
[1751709932460,6.7609,147.86,147.84,194.72]
[1751709933456,6.7609,147.86,147.85,2.3416819]
[1751709933657,11.55445566,147.86,147.85,2.3416819]
[1751709935766,4.79355566,147.86,147.85,2.3416819]
[1751709938369,6.7607,147.87,147.85,2.3416819]
[1751709938564,6.7607,147.87,147.86,2.3416819]
[1751709938868,11.57908237,147.87,147.86,2.3416819]
[1751709943872,17.36217935,147.87,147.86,2.3416819]
[1751709944571,17.36893974,147.87,147.86,2.3416819]
[1751709947674,6.7611,147.86,147.85,2.3416819]
[1751709947879,12.54419698,147.86,147.85,2.3416819]
[1751709951974,5.78309698,147.86,147.85,2.3416819]
[1751709953180,6.7607,147.87,147.85,2.3416819]
[1751709953776,6.7607,147.87,147.86,2.3416819]
[1751709954078,17.37488956,147.87,147.86,2.3416819]
[1751709958380,11.59446272,147.87,147.86,2.3416819]
[1751709958581,17.39671861,147.87,147.86,2.3416819]
[1751709959177,10.63601861,147.87,147.86,2.3416819]
[1751709959381,2.3016,147.91,147.86,2.3416819]
[1751709959577,10.62371856,147.9,147.89,2.3416819]
[1751709959781,17.38311856,147.9,147.89,2.3416819]
[1751709959990,5.80148246,147.9,147.89,2.3416819]
[1751709963288,12.56078246,147.9,147.89,2.3416819]
[1751709964789,12.56078246,147.9,147.88,194.6]
[1751709964991,6.7593,147.9,147.89,2.3416819]
[1751709965189,12.55656417,147.9,147.89,2.3416819]
[1751709965391,6.7593,147.9,147.89,2.3416819]
[1751709965786,4.6432819,147.91,147.83,46.14]
[1751709965987,2.3416819,147.86,147.83,46.14]
[1751709966488,6.7619,147.84,147.83,46.14]
[1751709966690,2.3416819,147.87,147.83,46.14]
[1751709966886,10.67620968,147.86,147.83,48.4816819]
[1751709967093,12.56092524,147.85,147.83,48.4816819]
[1751709967291,6.30974743,147.89,147.84,2.3416819]
[1751709967507,10.70587039,147.88,147.83,46.14]
[1751709967796,10.70587039,147.87,147.85,6.761]
[1751709967992,2.2183,147.9,147.85,201.321]
[1751709968222,6.76,147.88,147.85,201.321]
[1751709968795,6.76,147.88,147.87,2.3416819]
[1751709968989,12.58842111,147.88,147.87,2.3416819]
[1751709970292,12.58982913,147.88,147.87,2.3416819]
[1751709972090,5.82982913,147.88,147.87,2.3416819]
[1751709972295,6.7598,147.89,147.87,2.3416819]
[1751709972496,6.7598,147.89,147.88,2.3416819]
[1751709972799,12.56758406,147.89,147.88,2.3416819]
[1751709973894,5.80778406,147.89,147.88,2.3416819]
[1751709976599,10.67058199,147.89,147.88,2.3416819]
[1751709976899,10.67058199,147.89,147.88,9.1016819]
[1751709977099,5.80778406,147.89,147.88,9.1016819]
[1751709981906,5.80778406,147.89,147.88,6.76]
[1751709982202,5.80778406,147.89,147.88,9.1016819]
[1751709985008,5.80778406,147.89,147.87,6.7603]
[1751709985306,6.7592,147.9,147.88,2.3416819]
[1751709985507,6.7592,147.9,147.89,2.3416819]
[1751709985708,17.45441988,147.9,147.89,2.3416819]
[1751709990916,12.58251427,147.9,147.89,2.3416819]
[1751709991117,17.4652566,147.9,147.89,2.3416819]
[1751709993915,17.466296,147.9,147.89,2.3416819]
[1751709998316,11.64298173,147.9,147.89,2.3416819]
[1751709998519,17.44821778,147.9,147.89,2.3416819]
[1751710002223,19.77601498,147.9,147.89,2.3416819]
[1751710002422,19.77601498,147.9,147.89,2.33878853]
[1751710002835,19.78109066,147.9,147.89,2.33878853]
[1751710004952,13.02189066,147.9,147.89,2.33878853]
[1751710005126,10.69409346,147.9,147.89,2.33878853]
[1751710006524,17.45319346,147.9,147.89,2.33878853]
[1751710008314,19.78166315,147.9,147.89,2.33878853]
[1751710008720,19.78308635,147.9,147.89,2.33878853]
[1751710009227,13.02398635,147.9,147.89,2.33878853]
[1751710011327,19.78308635,147.9,147.89,2.33878853]
[1751710016330,26.10144683,147.9,147.89,2.33878853]
[1751710017733,26.12873655,147.9,147.89,2.33878853]
[1751710021034,19.36963655,147.9,147.89,2.33878853]
[1751710021236,10.71249012,147.9,147.89,9.09838853]
[1751710022130,10.71249012,147.9,147.89,6.7596]
[1751710022335,10.71249012,147.9,147.89,9.09838853]
[1751710024338,13.07636048,147.93,147.91,6.7585]
[1751710024530,13.07636048,147.93,147.92,2.33878853]
[1751710024839,9.09374798,147.93,147.92,2.33878853]
[1751710025242,2.33574798,147.93,147.92,9.09698853]
[1751710025442,6.31836048,147.95,147.92,2.33695266]
[1751710025739,13.07516048,147.96,147.94,2.33695266]
[1751710025938,6.31836048,147.96,147.95,2.33695266]
[1751710026335,6.31836048,147.97,147.95,9.09345266]
[1751710026638,6.31836048,147.97,147.96,2.33695266]
[1751710026837,11.13816327,147.98,147.96,2.33695266]
[1751710027043,11.13816327,147.98,147.97,2.33695266]
[1751710029741,4.38256327,147.98,147.97,9.09285266]
[1751710030240,6.7543,148.01,147.98,6.7554]
[1751710030442,6.7543,148.01,148.0,2.33695266]
[1751710033637,2.3564,148.02,147.96,52.7762]
[1751710033942,4.69335266,148.02,147.98,2.33695266]
[1751710034441,6.7559,147.97,147.96,46.02]
[1751710034640,6.7559,147.97,147.96,48.35695266]
[1751710036835,6.7576,147.94,147.92,46.02]
[1751710037042,2.33695266,147.98,147.93,2.33695266]
[1751710037341,4.91317306,147.97,147.95,2.33695266]
[1751710037538,6.7564,147.96,147.95,2.33695266]
[1751710038138,6.7568,147.95,147.94,2.33695266]
[1751710038840,6.7577,147.93,147.92,46.02]
[1751710039142,6.7577,147.93,147.92,48.35695266]
[1751710039941,2.33695266,147.94,147.9,2.33695266]
[1751710040246,2.33695266,147.92,147.88,48.35695266]
[1751710040434,6.7596,147.89,147.88,48.35695266]
[1751710041946,6.7596,147.89,147.88,46.02]
[1751710055170,14.14603197,147.89,147.82,3.65486216]
[1751710055471,17.36246981,147.88,147.82,197.99486216]
[1751710055773,10.49116981,147.87,147.82,197.99486216]
[1751710056068,6.8713,147.88,147.82,197.99486216]
[1751710056366,10.48978805,147.87,147.82,197.99486216]
[1751710056672,6.7621,147.84,147.82,197.99486216]
[1751710057269,4.75970853,147.87,147.82,197.99486216]
[1751710057473,6.8713,147.88,147.82,197.99486216]
[1751710057862,5.71435561,147.87,147.82,197.99486216]
[1751710058068,6.7617,147.85,147.82,197.99486216]
[1751710058467,6.7621,147.84,147.82,197.99486216]
[1751710060074,6.7621,147.84,147.82,198.01486216]
[1751710061977,6.7623,147.83,147.81,240.4]
[1751710062784,6.7623,147.83,147.81,46.02]
[1751710062972,6.7623,147.83,147.81,240.4]
[1751710063973,6.7623,147.83,147.81,46.02]
[1751710064277,6.7623,147.83,147.81,240.4]
[1751710066584,6.7623,147.83,147.81,46.02]
[1751710066778,6.7623,147.83,147.82,194.4]
[1751710069785,6.7623,147.83,147.82,196.74116511]
[1751710070780,6.7623,147.83,147.82,2.34116511]
[1751710070980,6.7623,147.83,147.82,196.74116511]
[1751710073784,6.7623,147.83,147.82,2.34116511]
[1751710073988,6.7623,147.83,147.82,196.74116511]
[1751710078492,6.762,147.84,147.82,196.74116511]
[1751710078690,6.762,147.84,147.83,2.34116511]
[1751710084199,12.52517059,147.84,147.83,2.34116511]
[1751710084799,6.7615,147.85,147.83,2.34116511]
[1751710084991,6.7615,147.85,147.82,201.1627]
[1751710084992,6.7615,147.85,147.84,2.34116511]
[1751710085209,12.52459386,147.85,147.84,2.34116511]
[1751710085691,5.76309386,147.85,147.84,2.34116511]
[1751710086795,12.52449386,147.85,147.84,2.34116511]
[1751710087801,5.76309386,147.85,147.84,2.34116511]
[1751710088197,6.90326511,147.88,147.84,2.34116511]
[1751710088500,12.7886754,147.87,147.84,2.34116511]
[1751710088700,10.47684936,147.86,147.84,2.34116511]
[1751710088900,6.90326511,147.88,147.84,2.34116511]
[1751710089100,12.7889447,147.87,147.84,2.34116511]
[1751710089302,10.47711866,147.86,147.84,2.34116511]
[1751710089598,12.52482357,147.85,147.84,2.34116511]
[1751710090800,12.52482357,147.85,147.82,201.1625]
[1751710091000,6.7614,147.85,147.84,2.34116511]
[1751710091204,12.53381379,147.85,147.84,2.34116511]
[1751710092304,6.7621,147.84,147.83,2.34116511]
[1751710094304,12.54078283,147.84,147.83,2.34116511]
[1751710095705,12.54078283,147.84,147.82,196.74116511]
[1751710095902,6.7621,147.84,147.82,196.74116511]
[1751710096504,2.34116511,147.86,147.81,46.02]
[1751710096707,2.34116511,147.84,147.81,46.02]
[1751710096908,5.78217975,147.83,147.81,46.02]
[1751710097208,12.54497975,147.82,147.81,46.02]
[1751710097409,17.28113105,147.82,147.81,46.02]
[1751710099818,12.54497975,147.82,147.81,46.02]
[1751710100212,17.28591693,147.82,147.81,46.02]
[1751710100512,12.54497975,147.82,147.81,46.02]
[1751710101118,17.28560564,147.82,147.81,46.02]
[1751710101315,12.54497975,147.82,147.81,46.02]
[1751710101717,17.28525873,147.82,147.81,46.02]
[1751710102110,12.54497975,147.82,147.81,46.02]
[1751710103310,12.53940259,147.82,147.81,46.02]
[1751710106118,12.53940259,147.82,147.78,2.34162966]
[1751710106119,5.77660259,147.82,147.78,2.34162966]
[1751710106314,5.77660259,147.81,147.79,194.38]
[1751710106516,5.77660259,147.8,147.77,48.36162966]
[1751710106713,5.77660259,147.79,147.78,196.72162966]
[1751710107218,5.77660259,147.79,147.78,194.38]
[1751710107611,5.77660259,147.79,147.78,2.34162966]
[1751710107817,5.77660259,147.79,147.77,48.36162966]
[1751710108019,5.77660259,147.78,147.77,46.02]
[1751710108213,12.54120259,147.78,147.77,240.4]
[1751710108616,12.54120259,147.78,147.77,242.74162966]
[1751710108820,12.54120259,147.78,147.77,46.02]
[1751710109016,12.54120259,147.78,147.77,242.76162966]
[1751710109212,6.7646,147.78,147.77,242.76162966]
[1751710109415,6.7646,147.78,147.77,48.36162966]
[1751710109625,6.7646,147.78,147.77,240.42]
[1751710110724,6.7646,147.78,147.77,242.76162966]
[1751710111122,6.7646,147.78,147.77,48.36162966]
[1751710111324,6.764,147.8,147.77,249.52672966]
[1751710111523,5.79584962,147.79,147.77,247.1851]
[1751710111725,6.764,147.8,147.78,2.34162966]
[1751710111924,6.764,147.8,147.77,247.1851]
[1751710111925,6.764,147.8,147.79,2.34162966]
[1751710112125,6.7642,147.79,147.78,2.34162966]
[1751710112424,5.79584962,147.79,147.77,242.76162966]
[1751710112624,8.6687835,147.82,147.77,242.76162966]
[1751710112824,12.77997726,147.81,147.77,242.76162966]
[1751710113024,5.79493684,147.8,147.77,242.76162966]
[1751710113220,5.79493684,147.79,147.77,242.76162966]
[1751710113422,6.7646,147.78,147.77,242.76162966]
[1751710113623,12.55897278,147.78,147.77,240.42]
[1751710115022,12.55897278,147.78,147.77,46.02]
[1751710115422,12.55897278,147.78,147.77,240.42]
[1751710117928,12.55897278,147.78,147.77,194.4]
[1751710120835,6.7658,147.76,147.73,49.68083515]
[1751710121028,5.77490099,147.75,147.74,194.42]
[1751710121334,8.58035384,147.79,147.74,194.42]
[1751710121527,5.77274852,147.78,147.74,194.42]
[1751710121728,5.77274852,147.77,147.74,194.42]
[1751710122031,12.53854852,147.76,147.74,194.42]
[1751710122234,6.7658,147.76,147.74,194.42]
[1751710124141,6.766,147.75,147.73,46.02]
[1751710124434,6.766,147.75,147.74,194.44]
[1751710124938,6.7664,147.74,147.73,46.02]
[1751710125137,6.7664,147.74,147.73,240.46]
[1751710125343,6.7662,147.75,147.73,240.46]
[1751710128030,6.7662,147.75,147.73,46.02]
[1751710128535,6.7662,147.75,147.74,194.44]
[1751710128936,5.94383515,147.78,147.69,633.82083515]
[1751710129136,3.66083515,147.76,147.7,194.44]
[1751710129336,3.66083515,147.76,147.71,194.44]
[1751710129932,3.66083515,147.76,147.72,194.44]
[1751710130236,6.7667,147.74,147.72,194.44]
[1751710131233,6.7669,147.73,147.72,194.44]
[1751710131436,6.7669,147.73,147.7,10.42873515]
[1751710131638,6.7669,147.73,147.72,194.44]
[1751710134134,3.66083515,147.76,147.69,630.16]
[1751710134335,3.66083515,147.76,147.7,194.46]
[1751710134537,5.74353655,147.75,147.7,194.46]
[1751710134737,3.66083515,147.76,147.7,194.46]
[1751710134936,5.74353655,147.75,147.7,194.46]
[1751710135133,6.7681,147.71,147.69,46.04]
[1751710135340,3.66083515,147.74,147.69,46.04]
[1751710135542,3.66083515,147.74,147.69,240.52]
[1751710135739,6.7681,147.71,147.69,240.5]
[1751710136237,6.7683,147.7,147.69,240.5]
[1751710137040,6.768,147.71,147.69,240.5]
[1751710139340,6.768,147.71,147.7,194.48]
[1751710144254,6.768,147.71,147.69,46.04]
[1751710144438,6.768,147.71,147.7,194.5]
[1751710146746,6.7683,147.7,147.69,46.04]
[1751710146941,6.7683,147.7,147.69,240.54]
[1751710147339,2.4196,147.73,147.65,56.47113515]
[1751710147641,9.3887254,147.72,147.65,49.70083515]
[1751710147846,6.7696,147.68,147.66,196.84629035]
[1751710148043,2.34629035,147.71,147.67,2.34629035]
[1751710148543,6.769,147.69,147.67,2.34629035]
[1751710149141,6.769,147.69,147.66,194.5]
[1751710149447,2.4196,147.73,147.68,2.34629035]
[1751710149743,2.4196,147.73,147.69,198.1635124]
[1751710150540,6.7676,147.72,147.69,204.9322124]
[1751710151543,46.04,147.74,147.7,6.7679]